bitfinex-derivatives/quotes_BTCF0:USTF0_20250108
["timestamp","ask_amount","ask_price","bid_price","bid_amount"]
[1736362440907,0.3608,94000.0,93984.0,0.1581]
[1736362441104,0.3608,93988.0,93973.0,0.1568]
[1736362441302,0.3608,93991.0,93973.0,0.1568]
[1736362441503,0.5,93994.0,93982.0,0.3608]
[1736362441717,0.1614,94005.0,93993.0,0.3608]
[1736362441919,0.05176653,93999.0,93993.0,0.3608]
[1736362442102,0.053202,93995.0,93993.0,0.3608]
[1736362442302,0.553202,93995.0,93993.0,0.3608]
[1736362442506,0.053208,93985.0,93984.0,0.002]
[1736362443113,0.053208,93985.0,93966.0,0.3608]
[1736362443314,0.053217,93969.0,93966.0,0.3608]
[1736362443515,0.053217,93968.0,93966.0,0.3608]
[1736362443924,0.053213,93976.0,93966.0,0.3608]
[1736362444105,0.00128,93984.0,93975.0,0.3608]
[1736362444311,0.05321,93981.0,93976.0,1.5]
[1736362444512,0.05576653,93985.0,93976.0,1.5]
[1736362444711,0.053212,93978.0,93975.0,0.3608]
[1736362445010,0.053212,93977.0,93975.0,0.3608]
[1736362445213,0.053212,93977.0,93976.0,1.5]
[1736362445406,0.053212,93977.0,93975.0,0.3608]
[1736362445603,0.053212,93977.0,93976.0,0.001]
[1736362445810,0.18810211,93979.0,93975.0,0.33979999]
[1736362446019,0.18810211,93979.0,93976.0,0.1677]
[1736362446417,0.18810211,93983.0,93977.0,0.156]
[1736362447419,0.053212,93977.0,93975.0,0.34135999]
[1736362447724,0.053212,93977.0,93961.0,0.6845]
[1736362447916,0.11005646,93980.0,93961.0,0.6845]
[1736362448110,0.31783274,93986.0,93970.0,0.3608]
[1736362448111,0.053209,93983.0,93970.0,0.3608]
[1736362448717,0.001,93977.0,93970.0,0.3608]
[1736362449410,0.15683274,93975.0,93970.0,0.3608]
[1736362449723,0.053221,93962.0,93961.0,0.00056]
[1736362449913,0.053224,93957.0,93952.0,0.3608]
[1736362450222,0.053226,93953.0,93944.0,0.3608]
[1736362450416,0.053225,93954.0,93953.0,0.3608]
[1736362450922,0.15683274,93954.0,93944.0,0.3608]
[1736362451225,0.05323,93946.0,93944.0,0.3608]
[1736362451724,0.1629,93953.0,93917.0,0.053246]
[1736362451725,0.053239,93930.0,93925.0,0.3608]
[1736362452115,0.05324,93928.0,93925.0,0.3608]
[1736362452315,0.10881645,93935.0,93918.0,0.1627]
[1736362452316,0.053241,93926.0,93918.0,0.1627]
[1736362452818,0.053244,93922.0,93914.0,0.3608]
[1736362453023,0.053244,93922.0,93905.0,0.3608]
[1736362453024,0.10881645,93924.0,93905.0,0.3608]
[1736362453211,0.053252,93906.0,93905.0,0.3608]
[1736362453416,0.5,93914.0,93905.0,0.3608]
[1736362453609,0.3608,93920.0,93905.0,0.3608]
[1736362453819,0.15673281,93920.0,93917.0,0.3608]
[1736362454720,0.15673281,93920.0,93919.0,0.3608]
[1736362455021,0.15773281,93922.0,93919.0,0.3608]
[1736362455220,0.15773281,93922.0,93920.0,0.053244]
[1736362455416,0.18807937,93935.0,93927.0,0.05324]
[1736362455727,0.18807937,93935.0,93934.0,0.3608]
[1736362456318,0.18807937,93935.0,93934.0,1.8608]
[1736362456633,0.18807937,93948.0,93934.0,1.8608]
[1736362456818,0.18807937,93948.0,93944.0,0.3608]
[1736362457130,0.05323,93946.0,93944.0,0.3608]
[1736362457328,0.003,93935.0,93934.0,1.86136]
[1736362457625,0.053236,93934.0,93924.0,0.3608]
[1736362457820,0.053236,93934.0,93927.0,0.0001]
[1736362457821,0.05324,93928.0,93927.0,0.0001]
[1736362459421,0.07145861,93928.0,93927.0,0.0001]
[1736362459621,0.07345861,93928.0,93927.0,0.0001]
[1736362459818,0.07345861,93928.0,93892.0,0.41406]
[1736362459819,0.43282731,93928.0,93892.0,0.41406]
[1736362460020,0.43282731,93928.0,93908.0,0.3608]
[1736362460021,0.053246,93917.0,93908.0,0.3608]
[1736362460216,0.43282731,93928.0,93908.0,0.3608]
[1736362460421,0.5,93926.0,93908.0,0.3608]
[1736362460723,0.553242,93925.0,93908.0,0.3608]
[1736362460925,0.07402731,93928.0,93922.0,0.3608]
[1736362461318,0.01821861,93928.0,93922.0,0.3608]
[1736362461525,0.053244,93922.0,93908.0,0.3628]
[1736362461917,0.50124001,93926.0,93908.0,0.3628]
[1736362462220,0.053251,93909.0,93908.0,0.002]
[1736362462931,0.053251,93909.0,93908.0,0.003]
[1736362463630,0.053251,93909.0,93908.0,0.001]
[1736362463827,0.07290844,93909.0,93908.0,0.001]
[1736362464028,0.07290844,93909.0,93901.0,0.3608]
[1736362464029,0.37290844,93909.0,93901.0,0.3608]
[1736362464227,0.414055,93902.0,93900.0,0.1]
[1736362464731,0.5,93901.0,93900.0,0.1]
[1736362465029,0.414055,93902.0,93900.0,0.1]
[1736362466322,0.3608,93902.0,93900.0,0.1]
[1736362466517,0.3608,93902.0,93900.0,0.101]
[1736362468029,0.01865744,93909.0,93900.0,0.101]
[1736362468227,0.16341335,93910.0,93900.0,0.101]
[1736362468531,0.01890531,93913.0,93903.0,0.053254]
[1736362468731,0.12493185,93912.0,93903.0,0.3608]
[1736362468920,0.12493185,93912.0,93905.0,0.053253]
[1736362469719,0.12493185,93912.0,93903.0,0.3608]
[1736362470120,0.12593185,93912.0,93905.0,0.001]
[1736362470332,0.053252,93907.0,93905.0,0.001]
[1736362470525,0.053252,93907.0,93903.0,0.3608]
[1736362470924,0.053252,93906.0,93903.0,0.3608]
[1736362471131,0.5,93910.0,93900.0,0.1]
[1736362471332,0.053253,93904.0,93900.0,0.1]
[1736362471722,0.053255,93902.0,93900.0,0.1]
[1736362472127,0.3608,93901.0,93900.0,0.1]
[1736362473022,0.3608,93901.0,93900.0,0.155256]
[1736362473226,0.12493185,93906.0,93900.0,0.155256]
[1736362473434,0.16341335,93910.0,93903.0,0.7216]
[1736362473635,0.16341335,93910.0,93903.0,0.6313041]
[1736362473831,0.16341335,93920.0,93903.0,0.6313041]
[1736362474037,0.5,93917.0,93916.0,0.3608]
[1736362474342,0.053246,93917.0,93916.0,0.3608]
[1736362475337,0.053253,93905.0,93904.0,1.5]
[1736362476133,0.053252,93908.0,93904.0,1.5]
[1736362476339,0.053252,93907.0,93904.0,1.5]
[1736362476529,0.5,93915.0,93904.0,1.5]
[1736362476730,0.0528292,93905.0,93903.0,0.2705041]
[1736362476931,0.053253,93904.0,93903.0,0.2705041]
[1736362477130,0.204353,93904.0,93903.0,0.2486755]
[1736362477338,0.364953,93904.0,93903.0,0.2486755]
[1736362477538,0.364953,93904.0,93900.0,0.1]
[1736362477539,0.053255,93901.0,93900.0,0.1]
[1736362478033,0.053255,93901.0,93900.0,0.06212032]
[1736362479031,0.24480167,93901.0,93900.0,0.06212032]
[1736362479231,0.24680167,93901.0,93900.0,0.01024988]
[1736362480039,0.24980167,93901.0,93900.0,0.01024988]
[1736362480237,0.19654667,93901.0,93900.0,0.01024988]
[1736362480632,0.19754667,93901.0,93900.0,0.01024988]
[1736362481242,0.19754667,93901.0,93900.0,0.16734988]
[1736362481442,0.00124001,93923.0,93900.0,0.48084988]
[1736362481744,0.053248,93914.0,93912.0,0.3608]
[1736362483239,0.16341335,93922.0,93912.0,0.3608]
[1736362483438,0.014,93914.0,93912.0,0.3608]
[1736362484732,0.014,93914.0,93913.0,0.053248]
[1736362485141,0.1882734,93921.0,93912.0,0.3618]
[1736362485347,0.013,93922.0,93920.0,0.3608]
[1736362485735,0.004,93922.0,93920.0,0.3608]
[1736362486044,0.01838626,93924.0,93920.0,0.3608]
[1736362486244,0.1882734,93925.0,93920.0,0.3608]
[1736362486549,0.1882734,93925.0,93924.0,0.3608]
[1736362487046,0.01884167,93927.0,93924.0,0.3608]
[1736362487241,0.1882734,93933.0,93925.0,1.706541]
[1736362487450,0.1882734,93933.0,93932.0,0.3608]
[1736362488642,0.001,93922.0,93912.0,0.3608]
[1736362488847,0.053247,93916.0,93912.0,0.3608]
[1736362489737,0.18165895,93922.0,93912.0,0.3608]
[1736362489738,0.15717312,93915.0,93912.0,0.3608]
[1736362490140,0.15717312,93915.0,93912.0,0.3688]
[1736362490347,0.21042112,93915.0,93912.0,0.3688]
[1736362491144,0.15717312,93915.0,93912.0,0.3688]
[1736362492140,0.053248,93914.0,93912.0,0.3688]
[1736362492344,0.053248,93914.0,93912.0,0.3628]
[1736362492543,0.053248,93913.0,93912.0,0.3688]
[1736362492744,0.1882734,93915.0,93912.0,0.3668]
[1736362493051,0.1882734,93915.0,93912.0,0.3628]
[1736362493242,0.1882734,93915.0,93913.0,1.5]
[1736362493444,0.053248,93914.0,93913.0,1.5]
[1736362493649,0.1882734,93915.0,93912.0,0.3608]
[1736362493848,0.1882734,93915.0,93912.0,0.3618]
[1736362494456,0.053248,93914.0,93912.0,0.3618]
[1736362494648,0.053248,93913.0,93912.0,0.3618]
[1736362494848,0.1882734,93915.0,93904.0,0.34030554]
[1736362495051,0.3608,93912.0,93900.0,0.01024988]
[1736362495251,0.414055,93901.0,93900.0,0.01024988]
[1736362496553,0.05326,93892.0,93883.0,0.3608]
[1736362496759,0.16341335,93900.0,93884.0,0.053264]
[1736362497164,0.16341335,93900.0,93883.0,0.3608]
[1736362497459,0.053262,93889.0,93883.0,0.3608]
[1736362497762,0.05326,93893.0,93883.0,0.3608]
[1736362497971,0.18851784,93892.0,93884.0,0.1437]
[1736362498151,0.053262,93889.0,93884.0,0.1437]
[1736362498354,0.18851784,93892.0,93886.0,0.3608]
[1736362498556,0.18851784,93892.0,93891.0,0.053261]
[1736362499259,0.18098314,93899.0,93898.0,0.053257]
[1736362499460,0.3608,93950.0,93898.0,0.3608]
[1736362499461,0.00148,93924.0,93898.0,0.3608]
[1736362499665,0.01880425,93926.0,93924.0,0.053242]
[1736362499859,0.1421,93949.0,93925.0,0.2945]
[1736362500163,0.01834884,93936.0,93926.0,0.053241]
[1736362500564,0.01834884,93936.0,93925.0,0.1447]
[1736362500860,0.01834884,93936.0,93925.0,0.12269999]
[1736362501071,0.053242,93924.0,93923.0,0.3608]
[1736362502361,0.053251,93909.0,93908.0,0.3608]
[1736362502666,0.053248,93913.0,93908.0,0.3608]
[1736362502851,0.05325,93911.0,93908.0,0.3608]
[1736362503057,0.3608,93916.0,93899.0,0.3608]
[1736362503252,0.053256,93900.0,93899.0,0.3608]
[1736362504470,0.053256,93900.0,93899.0,0.3678]
[1736362505474,0.054256,93900.0,93899.0,0.3678]
[1736362505769,0.0734699,93900.0,93899.0,0.007]
[1736362506062,0.053259,93894.0,93893.0,0.34579999]
[1736362506263,0.053259,93894.0,93888.0,0.25]
[1736362506264,0.053262,93889.0,93888.0,0.25]
[1736362507568,0.11533255,93900.0,93888.0,0.251]
[1736362507769,0.053259,93894.0,93888.0,0.1539]
[1736362507969,0.11533255,93900.0,93888.0,0.1539]
[1736362507970,0.18601483,93900.0,93892.0,0.3608]
[1736362508164,0.13275883,93900.0,93892.0,0.3608]
[1736362508469,0.15688422,93899.0,93892.0,0.3608]
[1736362508667,0.15688422,93899.0,93893.0,1.5]
[1736362508970,0.05327,93875.0,93866.0,0.3608]
[1736362509163,0.16341335,93880.0,93866.0,0.3608]
[1736362509567,0.053274,93867.0,93866.0,0.3608]
[1736362510070,0.053279,93860.0,93858.0,0.3608]
[1736362510962,0.07105409,93860.0,93858.0,0.3608]
[1736362511165,0.01777509,93860.0,93848.0,0.61443768]
[1736362511374,0.053281,93856.0,93848.0,0.61443768]
[1736362511766,0.053281,93856.0,93848.0,0.3608]
[1736362512983,0.2905,93859.0,93848.0,0.3608]
[1736362513168,0.15674573,93874.0,93855.0,0.3608]
[1736362513369,0.15674573,93874.0,93873.0,0.7216]
[1736362513767,0.15674573,93874.0,93873.0,1.0216]
[1736362514080,0.053249,93911.0,93894.0,0.053259]
[1736362514282,0.053245,93919.0,93910.0,0.3608]
[1736362514486,0.5,93926.0,93910.0,0.3608]
[1736362514673,0.16341335,93920.0,93910.0,0.3608]
[1736362514874,0.053247,93916.0,93911.0,1.5]
[1736362515178,0.004,93911.0,93902.0,0.3608]
[1736362515566,0.053253,93906.0,93902.0,0.3608]
[1736362516083,0.004,93911.0,93902.0,0.3608]
[1736362516471,0.05725,93911.0,93902.0,0.3608]
[1736362516683,0.05725,93911.0,93910.0,0.3608]
[1736362516986,0.01783745,93912.0,93910.0,0.3608]
[1736362517180,0.005,93916.0,93910.0,0.3608]
[1736362517575,0.01850086,93926.0,93910.0,0.3608]
[1736362517775,0.21665735,93920.0,93919.0,0.3608]
[1736362518077,0.21665735,93920.0,93910.0,0.3608]
[1736362518078,0.009,93911.0,93910.0,0.3608]
[1736362518279,0.062249,93911.0,93908.0,0.3608]
[1736362518782,0.058247,93916.0,93910.0,0.004]
[1736362519282,0.009,93911.0,93910.0,0.001]
[1736362519685,0.005,93916.0,93908.0,0.3608]
[1736362519880,0.053239,93930.0,93915.0,0.414047]
[1736362520186,0.053237,93934.0,93928.0,0.3608]
[1736362520681,0.18784048,93937.0,93928.0,0.3608]
[1736362520881,0.053235,93936.0,93928.0,0.3608]
[1736362521378,0.18784048,93937.0,93928.0,0.3608]
[1736362521379,0.053237,93934.0,93928.0,0.3608]
[1736362521581,0.18784048,93937.0,93928.0,0.3608]
[1736362522184,0.16341335,93940.0,93928.0,0.3608]
[1736362522391,0.053239,93930.0,93911.0,0.3608]
[1736362522688,0.053247,93916.0,93911.0,0.3608]
[1736362522888,0.053248,93914.0,93911.0,0.3608]
[1736362523089,0.053249,93912.0,93911.0,0.3608]
[1736362523389,0.199845,93920.0,93910.0,0.3608]
[1736362523590,0.36224,93925.0,93910.0,0.3608]
[1736362523780,0.01719818,93925.0,93918.0,0.3608]
[1736362523980,0.16341335,93920.0,93918.0,0.3608]
[1736362524180,0.16341335,93920.0,93911.0,0.001]
[1736362524385,0.053249,93913.0,93911.0,0.001]
[1736362524780,0.053249,93913.0,93910.0,0.3608]
[1736362524987,0.053249,93912.0,93911.0,0.005]
[1736362525688,0.6484,93915.0,93899.0,0.3608]
[1736362525879,0.053251,93909.0,93899.0,0.3608]
[1736362526076,0.001,93913.0,93908.0,0.3608]
[1736362526579,0.004,93912.0,93908.0,0.3608]
[1736362527193,0.18784048,93923.0,93908.0,0.3608]
[1736362527384,0.18784048,93923.0,93922.0,0.414043]
[1736362527579,0.2984,93959.0,93942.0,0.053232]
[1736362527785,0.2984,93959.0,93955.0,0.3608]
[1736362527999,0.22052894,93961.0,93955.0,0.3608]
[1736362528187,0.22052894,93961.0,93955.0,0.7216]
[1736362529087,0.0517961,93960.0,93955.0,0.7216]
[1736362529293,0.0517961,93960.0,93955.0,0.774824]
[1736362529493,0.0517961,93960.0,93959.0,0.053222]
[1736362529879,0.0517961,93960.0,93955.0,0.3608]
[1736362530197,0.053224,93957.0,93955.0,0.3618]
[1736362530797,0.36228,93959.0,93945.0,0.33979999]
[1736362530988,0.053226,93953.0,93945.0,0.33979999]
[1736362531491,0.36224,93959.0,93945.0,0.33979999]
[1736362531794,0.36224,93959.0,93936.0,0.3608]
[1736362531795,0.053235,93938.0,93936.0,0.3608]
[1736362531982,0.053235,93938.0,93936.0,0.34954002]
[1736362532179,0.66341335,93949.0,93936.0,0.34954002]
[1736362532180,0.053231,93944.0,93936.0,0.34954002]
[1736362532383,0.053234,93938.0,93936.0,0.34954002]
[1736362532589,0.053238,93932.0,93924.0,0.3608]
[1736362532798,0.16341335,93934.0,93924.0,0.3608]
[1736362532984,0.3608,93932.0,93914.0,0.3608]
[1736362533185,0.16341335,93934.0,93923.0,0.053242]
[1736362533491,0.004,93938.0,93930.0,0.3608]
[1736362534390,0.004,93938.0,93932.0,0.3608]
[1736362534590,0.16341335,93950.0,93932.0,0.3608]
[1736362534591,0.5,93975.0,93958.0,0.053222]
[1736362534784,0.3608,93978.0,93971.0,0.3608]
[1736362535385,0.1512,93984.0,93971.0,0.414015]
[1736362535681,0.1512,93984.0,93979.0,0.3608]
[1736362536080,0.1688698,93984.0,93979.0,0.3608]
[1736362536482,0.0176698,93984.0,93983.0,0.053209]
[1736362536693,0.22052894,93990.0,93979.0,0.3608]
[1736362536882,0.005,93984.0,93979.0,0.3608]
[1736362537084,0.005,93984.0,93983.0,0.414009]
[1736362537589,0.002,93984.0,93983.0,0.3608]
[1736362537790,0.002,93984.0,93983.0,0.414009]
[1736362538489,0.002,93984.0,93983.0,1.914009]
[1736362539080,0.008,93984.0,93983.0,2.215009]
[1736362539800,0.2,94000.0,93983.0,2.215009]
[1736362539801,0.2,94000.0,93983.0,2.1618]
[1736362539984,0.2,94000.0,93999.0,0.3608]
[1736362540381,0.2,94000.0,93983.0,0.3618]
[1736362540382,0.053201,93996.0,93983.0,0.3618]
[1736362540589,0.006,93984.0,93983.0,0.001]
[1736362540787,0.061208,93984.0,93983.0,0.001]
[1736362541093,0.5,93974.0,93950.0,0.3608]
[1736362541286,0.16341335,93960.0,93950.0,0.3608]
[1736362541481,0.414019,93965.0,93950.0,0.3608]
[1736362541690,0.16341335,93970.0,93947.0,0.053229]
[1736362541891,0.053221,93962.0,93949.0,0.3608]
[1736362542194,0.3608,93963.0,93949.0,0.3608]
[1736362542595,0.01730108,93970.0,93958.0,0.3608]
[1736362542796,0.053219,93965.0,93958.0,0.3608]
[1736362543095,0.00144,93974.0,93958.0,0.3608]
[1736362543289,0.00148,93981.0,93968.0,0.3608]
[1736362543489,0.09357835,93980.0,93972.0,0.053215]
[1736362543692,0.09357835,93980.0,93968.0,0.3608]
[1736362544788,0.3608,93976.0,93968.0,0.001]
[1736362544994,0.3608,93969.0,93968.0,0.001]
[1736362545196,0.053216,93970.0,93968.0,0.001]
[1736362545497,0.414016,93970.0,93968.0,0.001]
[1736362545800,0.053222,93959.0,93958.0,0.006]
[1736362545994,0.053222,93959.0,93944.0,0.34479999]
[1736362546195,0.053222,93959.0,93945.0,1.5]
[1736362546598,0.3017,93958.0,93949.0,0.053227]
[1736362546793,0.00148,93964.0,93955.0,0.3608]
[1736362546994,0.01765637,93966.0,93955.0,0.3608]
[1736362547197,0.48557114,93970.0,93955.0,0.3608]
[1736362547394,0.50292447,93970.0,93955.0,0.3608]
[1736362547594,0.75464708,93970.0,93955.0,0.3608]
[1736362547794,0.053227,93951.0,93944.0,0.34679999]
[1736362547988,0.053227,93951.0,93944.0,0.34479999]
[1736362548191,0.053233,93941.0,93931.0,0.3608]
[1736362549001,0.3608,93952.0,93940.0,0.3608]
[1736362549200,0.00144,93959.0,93951.0,0.3608]
[1736362549394,0.50152,93966.0,93951.0,0.3608]
[1736362549600,0.50152,93966.0,93961.0,0.3608]
[1736362549601,0.00152,93966.0,93961.0,0.3608]
[1736362549905,0.01755405,93965.0,93961.0,0.3608]
[1736362550095,0.18735143,93966.0,93961.0,0.3608]
[1736362550298,0.2045936,93966.0,93961.0,0.3608]
[1736362550706,0.009,93963.0,93961.0,0.3608]
[1736362550898,0.009,93963.0,93961.0,0.33879999]
[1736362551204,0.009,93963.0,93962.0,0.3608]
[1736362551205,0.09573032,93963.0,93962.0,0.3608]
[1736362551408,0.09373032,93963.0,93961.0,0.001]
[1736362551703,0.45453032,93963.0,93961.0,0.001]
[1736362551890,0.053221,93962.0,93961.0,0.001]
[1736362552097,0.45453032,93963.0,93940.0,0.3608]
[1736362552296,0.053227,93950.0,93940.0,0.3608]
[1736362552496,0.3608,93951.0,93940.0,0.3608]
[1736362552695,0.3608,93951.0,93908.0,0.3608]
[1736362552696,0.3608,93941.0,93908.0,0.3608]
[1736362552896,0.053234,93938.0,93921.0,0.3608]
[1736362553093,0.053234,93938.0,93923.0,0.053243]
[1736362553295,0.053234,93938.0,93924.0,1.5]
[1736362553798,0.09368728,93929.0,93924.0,1.5]
[1736362554608,0.09368728,93929.0,93925.0,0.053241]
[1736362555006,0.001,93929.0,93927.0,0.05324]
[1736362555191,0.001,93929.0,93927.0,0.41404]
[1736362555695,0.12491637,93933.0,93932.0,0.053238]
[1736362556205,0.12491637,93939.0,93933.0,0.053236]
[1736362556408,0.12491637,93939.0,93938.0,0.3608]
[1736362557394,0.1562172,93946.0,93938.0,0.3608]
[1736362557601,0.05323,93945.0,93938.0,0.3608]
[1736362557799,0.1562172,93946.0,93938.0,0.3608]
[1736362558198,0.17372242,93946.0,93938.0,0.3608]
[1736362558400,0.1562172,93946.0,93944.0,0.053231]
[1736362558714,0.1562172,93946.0,93945.0,0.05323]
[1736362558912,0.093815,93947.0,93946.0,0.05323]
[1736362559111,0.093815,93947.0,93946.0,0.41403]
[1736362559412,0.1562172,93963.0,93953.0,0.053226]
[1736362559608,0.18735143,93971.0,93970.0,0.053216]
[1736362559809,0.18735143,93971.0,93970.0,0.414016]
[1736362560209,0.18735143,93988.0,93970.0,1.8608]
[1736362560411,0.18735143,93988.0,93984.0,0.3608]
[1736362560816,0.053207,93987.0,93984.0,0.3608]
[1736362561111,0.18735143,93988.0,93984.0,0.33879999]
[1736362561312,0.18735143,93988.0,93987.0,0.053206]
[1736362561714,0.01770477,93996.0,93987.0,0.053206]
[1736362561918,0.414,93999.0,93988.0,0.053206]
[1736362562307,0.3608,93999.0,93984.0,0.33879999]
[1736362562510,0.3608,93999.0,93983.0,0.414008]
[1736362562511,0.053214,93975.0,93968.0,0.3608]
[1736362562815,0.3608,93982.0,93968.0,0.3608]
[1736362563317,0.3608,93982.0,93964.0,0.18938057]
[1736362563318,0.3608,93983.0,93969.0,1.5]
[1736362563516,0.053214,93974.0,93964.0,0.18938057]
[1736362563822,0.053219,93965.0,93964.0,0.18938057]
[1736362564020,0.053219,93965.0,93952.0,0.3608]
[1736362564021,0.053225,93954.0,93953.0,0.18938057]
[1736362564519,0.414025,93954.0,93953.0,0.18938057]
[1736362565419,0.053231,93944.0,93941.0,0.3608]
[1736362565930,0.3608,93954.0,93941.0,0.3608]
[1736362566130,0.053227,93950.0,93941.0,0.3608]
[1736362566333,0.053233,93940.0,93938.0,0.3608]
[1736362566529,0.3608,93944.0,93936.0,1.5]
[1736362566717,0.001,93944.0,93941.0,0.005]
[1736362566916,0.054231,93944.0,93941.0,0.007]
[1736362567725,0.054231,93944.0,93941.0,0.005]
[1736362568320,0.10503555,93943.0,93938.0,0.3608]
[1736362568931,0.05180455,93943.0,93938.0,0.3608]
[1736362569126,0.05180455,93943.0,93941.0,0.053232]
[1736362569326,0.05180455,93943.0,93938.0,0.3608]
[1736362569527,0.05480455,93943.0,93942.0,1.5]
[1736362569929,0.003,93943.0,93942.0,1.5]
[1736362570227,0.004,93943.0,93942.0,1.5]
[1736362571038,0.003,93943.0,93942.0,1.501]
[1736362571229,0.22052894,93957.0,93942.0,1.501]
[1736362571433,0.22052894,93957.0,93956.0,0.774824]
[1736362571731,0.25203308,93964.0,93956.0,0.7216]
[1736362571943,0.25203308,93964.0,93961.0,0.053221]
[1736362572124,0.25203308,93964.0,93963.0,1.5]
[1736362573035,0.053219,93964.0,93963.0,1.5]
[1736362573241,0.053222,93960.0,93956.0,0.7216]
[1736362573531,0.3608,93964.0,93943.0,0.053231]
[1736362573735,0.053223,93958.0,93944.0,1.5]
[1736362573926,0.053223,93958.0,93945.0,0.18938057]
[1736362574127,0.3608,93964.0,93945.0,0.18938057]
[1736362574323,0.053225,93955.0,93945.0,0.18938057]
[1736362574529,0.3608,93964.0,93961.0,0.004]
[1736362574739,0.053221,93963.0,93945.0,0.18938057]
[1736362574939,0.3608,93949.0,93945.0,0.18938057]
[1736362575135,0.05323,93947.0,93939.0,0.3608]
[1736362575347,0.053231,93944.0,93939.0,0.3608]
[1736362575729,0.3608,93949.0,93936.0,0.18938057]
[1736362575730,0.3608,93940.0,93936.0,0.18938057]
[1736362575936,0.053234,93938.0,93936.0,0.18938057]
[1736362576846,0.053239,93929.0,93928.0,0.25363768]
[1736362577134,0.053239,93929.0,93917.0,0.3608]
[1736362577135,0.053237,93934.0,93917.0,0.414046]
[1736362577335,0.053237,93933.0,93917.0,0.414046]
[1736362577543,0.3608,93928.0,93917.0,0.414046]
[1736362578037,0.3608,93928.0,93917.0,0.3608]
[1736362578238,0.3608,93928.0,93911.0,0.3608]
[1736362578440,0.3608,93919.0,93908.0,0.25363768]
[1736362578628,0.8608,93928.0,93908.0,0.25363768]
[1736362578629,0.3608,93925.0,93908.0,0.25363768]
[1736362578829,0.3608,93925.0,93917.0,0.005]
[1736362579044,0.3608,93937.0,93919.0,0.3608]
[1736362579240,0.053237,93934.0,93928.0,0.3608]
[1736362579440,0.01531933,93939.0,93928.0,0.3608]
[1736362579631,0.053233,93940.0,93928.0,0.3608]
[1736362579837,0.3608,93944.0,93928.0,0.3608]
[1736362580035,0.053237,93934.0,93928.0,0.3608]
[1736362580231,0.053239,93930.0,93928.0,0.3608]
[1736362581836,0.3608,93936.0,93928.0,0.3608]
[1736362582232,0.2519934,93940.0,93928.0,0.3608]
[1736362582439,0.053239,93930.0,93928.0,0.3608]
[1736362582939,0.060239,93930.0,93928.0,0.3608]
[1736362583341,0.055239,93930.0,93928.0,0.3608]
[1736362583535,0.053239,93930.0,93928.0,0.3608]
[1736362583738,0.053243,93922.0,93907.0,0.053251]
[1736362583943,0.414044,93922.0,93906.0,0.3608]
[1736362584240,0.1644,93929.0,93914.0,0.3608]
[1736362584435,0.1644,93929.0,93915.0,0.053247]
[1736362584641,0.3608,93934.0,93921.0,0.053244]
[1736362584842,0.3608,93934.0,93914.0,0.3608]
[1736362585044,0.3608,93934.0,93906.0,0.3608]
[1736362585045,0.001,93940.0,93934.0,0.053236]
[1736362585243,0.001,93940.0,93938.0,0.053234]
[1736362585937,0.1666,93975.0,93965.0,0.053218]
[1736362586139,0.00152,93979.0,93970.0,0.3608]
[1736362586338,0.721245,93990.0,93970.0,0.3608]
[1736362586536,0.16804,93990.0,93970.0,0.3608]
[1736362586834,0.16804,93990.0,93954.0,0.053225]
[1736362586835,0.00144,93997.0,93983.0,0.414008]
[1736362587145,0.2,94000.0,93983.0,0.414008]
[1736362587533,0.25503308,93985.0,93983.0,0.414008]
[1736362587738,0.003,93985.0,93983.0,0.414008]
[1736362589145,0.006,93985.0,93983.0,0.414008]
[1736362589343,0.006,93985.0,93983.0,0.3608]
[1736362589740,0.01485386,93995.0,93983.0,0.3608]
[1736362589944,0.2,94000.0,93994.0,0.3608]
[1736362590258,0.053202,93995.0,93994.0,0.3608]
[1736362590549,0.053202,93995.0,93994.0,1.8608]
[1736362590847,0.053202,93995.0,93983.0,0.3608]
[1736362590848,0.053205,93990.0,93983.0,0.33879999]
[1736362591044,0.053206,93988.0,93983.0,0.33879999]
[1736362591351,0.21476399,94000.0,93983.0,0.33879999]
[1736362591550,0.21476399,94000.0,93991.0,0.3608]
[1736362592064,0.004,93995.0,93991.0,0.3608]
[1736362592547,0.001,93995.0,93991.0,0.3608]
[1736362592750,0.001,93995.0,93991.0,0.415004]
[1736362592952,0.001,93995.0,93991.0,0.3618]
[1736362593141,0.001,93995.0,93992.0,0.053203]
[1736362593543,0.008,93995.0,93992.0,0.3608]
[1736362593738,0.007,93995.0,93992.0,0.3608]
[1736362593943,0.01,93995.0,93992.0,0.3608]
[1736362594147,0.01,93995.0,93991.0,0.001]
[1736362594548,0.01,93995.0,93993.0,0.053203]
[1736362594751,0.01,93995.0,93994.0,0.3608]
[1736362594942,0.2,94000.0,93995.0,0.053202]
[1736362595148,0.2,94000.0,93999.0,0.0532]
[1736362595453,0.2,94000.0,93999.0,1.5532]
[1736362595655,0.17132798,94013.0,94005.0,0.053196]
[1736362595856,0.17132798,94013.0,94007.0,0.053195]
[1736362596056,0.17132798,94013.0,94008.0,0.053194]
[1736362596254,0.1,94020.0,94005.0,0.3608]
[1736362596447,0.1,94020.0,94013.0,0.053191]
[1736362597354,0.102,94020.0,94013.0,0.053191]
[1736362597548,0.102,94020.0,94007.0,0.001]
[1736362597855,0.102,94020.0,94018.0,0.053189]
[1736362599054,0.107,94020.0,94018.0,0.053189]
[1736362599452,0.1,94040.0,94018.0,0.3]
[1736362599654,0.1,94040.0,94039.0,0.053177]
[1736362599847,0.11473731,94040.0,94039.0,0.053177]